Cogmind - Beta 14 @@@ ROGUE MODE // 2024.08.31 @ 14:33:19 Player: jimmyl Result: Destroyed by G-34 Mercenary with Small Laser Performance ------------- Evolutions (1) 500 Regions Visited (3) 600 Robots Destroyed (22) 110 Value Destroyed (613) 613 Prototype IDs (0) 0 Alien Tech Used (0) 0 Bonus (39) 39 TOTAL SCORE: 1862 Bonus ------- Follower Combat Kills 39 Cogmind --------- Core Integrity 0/400 Matter 276/300 Energy 70/100 System Corruption 0% Temperature Cool (6) Movement Treading (160) Location -9/Materials Parts ------- > --- POWER (1) -------- (None) > --- PROPULSION (2) --- Light Treads > --- UTILITY (4) ------ Heat Sink Small Storage Unit > --- WEAPON (2) ------- Medium Laser Flail > --- INVENTORY (8) ---- Aluminum Leg Aluminum Leg Wheel Compact Wheel Peak State ------------ > --- POWER ------------ Light Ion Engine > --- PROPULSION ------- Aluminum Leg Aluminum Leg > --- UTILITY ---------- Heat Sink Small Storage Unit Light Armor Plating Shield Generator > --- WEAPON ----------- Medium Laser Light Assault Rifle > --- INVENTORY -------- Light Ion Engine Light Treads Light Treads Wheel Compact Wheel Medium Laser Grenade Launcher [Rating: 10] Favorites ----------- Power Light Ion Engine Engine Light Ion Engine Propulsion Aluminum Leg Treads Light Treads Leg Aluminum Leg Utility Small Storage Unit Device Heat Sink Storage Small Storage Unit Protection Light Armor Plating Weapon Medium Laser Energy Gun Medium Laser Ballistic Gun Light Assault Rifle Launcher Grenade Launcher Impact Weapon Flail Build | -11 -10 -10 -9 ------- Run | Yrd Mat Min Mat Slots Evolved 2 | . . . 2 Power . | . . . . Propulsion . | . . . . Utility 2 | . . . 2 Weapon . | . . . . Parts Attached 24 | . . 1 23 Power 4 | . . . 4 Engine 4 | . . . 4 Core . | . . . . Reactor . | . . . . Propulsion 8 | . . . 8 Treads 2 | . . . 2 Leg 6 | . . . 6 Wheel . | . . . . Hover . | . . . . Flight . | . . . . Utility 4 | . . . 4 Device 2 | . . . 2 Storage . | . . . . Processor . | . . . . Hackware . | . . . . Protection 2 | . . . 2 Artifact . | . . . . Weapon 8 | . . 1 7 Energy Gun 4 | . . . 4 Energy Cannon . | . . . . Ballistic Gun 1 | . . . 1 Ballistic Cannon . | . . . . Launcher 2 | . . 1 1 Special Weapon . | . . . . Impact Weapon 1 | . . . 1 Slashing Weapon . | . . . . Piercing Weapon . | . . . . Special Melee Weapon . | . . . . Unidentified Prototypes . | . . . . Parts Lost 9 | . . . 9 Power 1 | . . . 1 Propulsion 4 | . . . 4 Utility 2 | . . . 2 Weapon 2 | . . . 2 Highest Loss Streak 6 | . . . 6 To Critical Strikes . | . . . . Average Slot Usage (%) 80 | . 85 85 76 Engine 10 | . 14 14 7 Treads 3 | . . . 5 Leg 20 | . 28 28 15 Device 7 | . . . 12 Storage 12 | . 14 14 11 Protection 2 | . . . 4 Energy Gun 11 | . 14 14 10 Ballistic Gun 5 | . 14 11 . Launcher 2 | . . 2 2 Impact Weapon 4 | . . . 7 Peak Build Rating 10 | . 6 6 10 Average Rating 7 | . 6 6 7 On Entrance 6 | 6 6 6 6 Naked Turns . | . . . . Heaviest Build 18 | 11 11 13 18 Greatest Support 40 | 20 20 20 40 Greatest Overweight (x) 1 | . . . 1 Average Overweight (x) . | . . . . Largest Inventory Capacity 8 | . 8 8 8 Average Capacity 8 | . 8 8 8 Most Carried 8 | . 6 7 8 Average Carried 6 | . 6 6 6 Final Capacity 8 | 8 8 8 8 Final Carried 7 | 6 6 7 4 Class Distribution -------------------- 89% | Mutant 10% | Scavenger-Mutant Dominant Class ---------------- Mutant | -10/Mines Mutant | -9/Materials Resources | -11 -10 -10 -9 ----------- Run | Yrd Mat Min Mat Matter Collected 479 | 166 . 39 274 Remotely . | . . . . Salvage Created 680 | . . 83 597 Parts 37 | . . 6 31 Haulers Intercepted . | . . . . Recyclers Shooed 2 | . . . 2 Parts Field Recycled . | . . . . Retrieved Matter . | . . . . Parts Self-Destructed . | . . . . Prevented . | . . . . Kills | -11 -10 -10 -9 ------- Run | Yrd Mat Min Mat Combat Hostiles Destroyed 19 | . . 2 17 Melee 3 | . . . 3 Guns 7 | . . 1 6 AOE 5 | . . 1 4 Classes Destroyed 7 | . . 2 5 Builder 1 | . . . 1 Recycler 1 | . . 1 . Mechanic 1 | . . . 1 Swarmer 4 | . . 2 2 Grunt 13 | . . . 13 Brawler 1 | . . . 1 Sentry 1 | . . . 1 Best Kill Streak 5 | . . 2 5 Combat Bots Only 5 | . . 1 5 Max Kills in Single Turn 2 | . . 1 2 Gunslinging . | . . . . Exploded 2 | . . 1 2 Melee 1 | . . . 1 Uniques/NPCs Destroyed . | . . . . Combat | -11 -10 -10 -9 -------- Run | Yrd Mat Min Mat Hostile Shots Fired 166 | . . 10 156 Missed 36 | . . 1 35 Damage Taken 1362 | . . 88 1274 Core 410 | . . 7 403 Absorbed by Shields 62 | . . . 62 Core Remaining (%) 98 | 100 . 97 . Volleys Fired 32 | . . 7 25 Largest 2 | . . 2 2 Hottest 100 | . . 70 100 Shots Fired 49 | . . 12 37 Gun 39 | . . 10 29 Cannon . | . . . . Launcher 10 | . . 2 8 Special . | . . . . Kinetic 11 | . . 5 6 Thermal 28 | . . 5 23 Explosive 10 | . . 2 8 Electromagnetic . | . . . . Robot Hit Streak 5 | . . 4 5 Robot Miss Streak 3 | . . 1 3 Penetration Max . | . . . . Secondary Targets 1 | . . . 1 Max Gunslinging Chain 1 | . . . 1 Shots Hit Robots 48 | . . 7 41 Core Hits 30 | . . 4 26 Critical Kills . | . . . . Critical Parts Destroyed 2 | . . . 2 Critical Strikes 3 | . . . 3 Burn 1 | . . . 1 Smash 2 | . . . 2 Melee Attacks 31 | . . . 31 Impact 31 | . . . 31 Slashing . | . . . . Piercing . | . . . . Sneak Attacks 1 | . . . 1 Combat Hostiles . | . . . . Follow-up Attacks . | . . . . Damage Inflicted 1410 | . . 99 1311 Guns 342 | . . 71 271 Cannons . | . . . . Explosions 299 | . . 28 271 Melee 759 | . . . 759 Ramming 10 | . . . 10 Kinetic 55 | . . 34 21 Thermal 287 | . . 37 250 Explosive 299 | . . 28 271 Electromagnetic . | . . . . Impact 759 | . . . 759 Slashing . | . . . . Piercing . | . . . . Highest Corruption . | . . . . Average Corruption . | . . . . Corruption Purged . | . . . . Corruption Blocked . | . . . . Overload Shots . | . . . . Overflow Damage 189 | . . . 189 Projectiles . | . . . . Explosions . | . . . . Melee 189 | . . . 189 Knockbacks 1 | . . . 1 Impact 1 | . . . 1 Kinetic . | . . . . Secondary . | . . . . Self-Inflicted Damage 35 | . . 14 21 Shots 2 | . . 1 1 Rammed . | . . . . Targets Rammed 1 | . . . 1 Kicked 1 | . . . 1 Crushed . | . . . . Highest Temperature 64 | . . 60 64 Average Temperature 22 | . . 28 19 Received Heat Transfer 565 | . . . 565 Siege Activations . | . . . . Robots Corrupted 5 | . . . 5 Combat Hostiles 4 | . . . 4 Parts Fried 8 | . . . 8 Impact Corruptions 9 | . . . 9 Robots Melted . | . . . . Combat Hostiles . | . . . . Parts Melted 1 | . . . 1 Heat Transferred 888 | . . 111 777 Parts Sabotaged . | . . . . Parts Stolen . | . . . . Parts Stripped . | . . . . Power Chain Reactions . | . . . . Alert | -11 -10 -10 -9 ------- Run | Yrd Mat Min Mat Peak Influence 337 | . . 156 337 Initial 60 | . . . 60 Average 146 | . . 47 217 Maximum Alert Level 1 | . . . 1 Low Security (%) 59 | . 100 100 30 Level 1 40 | . . . 69 Level 2 . | . . . . Level 3 . | . . . . Level 4 . | . . . . Level 5 . | . . . . High Security . | . . . . Max Security . | . . . . Squads Dispatched 1 | . . . 1 Investigation 1 | . . . 1 Extermination . | . . . . Reinforcement . | . . . . Assault . | . . . . Garrison . | . . . . Intercept . | . . . . Searches Triggered . | . . . . Construction Impeded . | . . . . Haulers Reinforced . | . . . . Active Scanning Responses . | . . . . Cargo Convoy Interrupts . | . . . . Stealth | -11 -10 -10 -9 --------- Run | Yrd Mat Min Mat Distress Signals 1 | . . . 1 Communications Jammed . | . . . . Distress Signals . | . . . . Times Spotted 31 | . . 7 24 Peak Tracking Total 7 | . . 3 7 Tactical Retreats 4 | . . 3 1 Traps | -11 -10 -10 -9 ------- Run | Yrd Mat Min Mat Traps Triggered 3 | . . . 3 Indirectly . | . . . . Trap Hack Attempts . | . . . . Triggered . | . . . . Disarmed . | . . . . Reprogrammed . | . . . . Reused . | . . . . Traps Extracted . | . . . . Installed . | . . . . Triggered . | . . . . Machines | -11 -10 -10 -9 ---------- Run | Yrd Mat Min Mat Machines Disabled . | . . . . Max in Single Turn . | . . . . Machines Repaired . | . . . . Machines Dismantled . | . . . . Machines Sabotaged . | . . . . Overloaded Fab Kills . | . . . . Hacking | -11 -10 -10 -9 --------- Run | Yrd Mat Min Mat Machines Accessed 5 | . . . 5 Terminals 5 | . . . 5 Fabricators . | . . . . Repair Stations . | . . . . Recycling Units . | . . . . Scanalyzers . | . . . . Garrison Access . | . . . . Total Hacks 15 | . . . 15 Successful 6 | . . . 6 Failed 8 | . . . 8 Catastrophic . | . . . . Database Lockouts 1 | . . . 1 Manual 13 | . . . 13 Terminals 15 | . . . 15 Fabricators . | . . . . Repair Stations . | . . . . Recycling Units . | . . . . Scanalyzers . | . . . . Garrison Access . | . . . . Terminal Hacks 4 | . . . 4 Robot Analysis 2 | . . . 2 Branch Access Points 1 | . . . 1 Zone Layout 1 | . . . 1 Fabricator Hacks . | . . . . Repair Station Hacks . | . . . . Recycling Unit Hacks . | . . . . Scanalyzer . | . . . . Garrison Access Hacks . | . . . . Unauthorized Hacks 2 | . . . 2 Terminals 2 | . . . 2 Operators 1 | . . . 1 Skim 1 | . . . 1 Fabricators . | . . . . Repair Stations . | . . . . Recycling Units . | . . . . Scanalyzers . | . . . . Garrison Access . | . . . . Data Cores Recovered . | . . . . Used . | . . . . Hacking Detections 4 | . . . 4 Full Trace Events 2 | . . . 2 Feedback Events . | . . . . Feedback Blocked . | . . . . Robot Schematics Acquired . | . . . . Robots Built . | . . . . Authchips . | . . . . Time . | . . . . Total Robot Build Rating . | . . . . Part Schematics Acquired . | . . . . Parts Built . | . . . . Authchips . | . . . . Time . | . . . . Total Part Build Rating . | . . . . Parts Repaired . | . . . . Time . | . . . . Parts Recycled . | . . . . Recycled Matter . | . . . . Retrieved Matter . | . . . . Retrieved Components . | . . . . Parts Scanalyzed . | . . . . Part Schematics Acquired . | . . . . Parts Damaged . | . . . . Bothacking | -11 -10 -10 -9 ------------ Run | Yrd Mat Min Mat Used RIF Installer . | . . . . Robots Hacked . | . . . . Non-combat . | . . . . Combat . | . . . . Robot Hacks Applied . | . . . . Relay Couplers Released . | . . . . Fabnet Peak Effective % . | . . . . Robots Rewired . | . . . . Allies Hacked . | . . . . Hacks Repelled . | . . . . Allies | -11 -10 -10 -9 -------- Run | Yrd Mat Min Mat Total Allies 3 | . . 3 . Largest Group 3 | . . 3 . Highest-Rated Group 40 | . . 40 . Highest-Rated Ally 16 | . . 16 . Total Orders . | . . . . Ally Attacks 33 | . . 33 . Total Damage 188 | . . 188 . Kills 3 | . . 3 . Allies Corrupted . | . . . . Allies Melted . | . . . . Intel | -11 -10 -10 -9 ------- Run | Yrd Mat Min Mat Robot Analysis Total 2 | . . . 2 Derelict Logs Recovered 1 | . . 1 . Drone Launches . | . . . . Drone Recoveries . | . . . . Exploration | -11 -10 -10 -9 ------------- Run | Yrd Mat Min Mat Turns Passed 830 | . 9 338 483 Spaces Moved 467 | 1 8 242 216 Core . | . . . . Treads 39 | . . . 39 Legs 428 | 1 8 242 177 Wheels . | . . . . Hover . | . . . . Flight . | . . . . Fastest Speed 120 | 120 120 120 120 Average Speed 124 | 120 120 120 128 Slowest Speed 190 | 120 120 120 190 Overloaded Moves . | . . . . Propulsion Burnouts . | . . . . Robots Hopped . | . . . . Cave-ins Triggered . | . . . . Exploration Rate (%) 21 | 2 7 61 17 Regions Visited 3 Branch Regions 1 Pre-discovered Areas 1 | . . 1 . Known Exits Taken . | . . . . Unknown Exits Taken 3 | 1 1 1 . Scrap Searched 3 | . . 3 . Spaces Dug . | . . . . Terrain Destroyed 65 | . . 15 50 Melee . | . . . . Projectile . | . . . . AOE 65 | . . 15 50 Terrain Rammed . | . . . . Walls Destroyed . | . . . . Machines Disabled . | . . . . Actions | -11 -10 -10 -9 --------- Run | Yrd Mat Min Mat Total 618 | . 7 278 333 Wait 58 | . . 28 30 Move 464 | . 7 241 216 Hop . | . . . . Pick Up 4 | . . 1 3 Fast Attach 12 | . . . 12 Attach 7 | . . . 7 Detach 1 | . . . 1 Swap 5 | . . 1 4 Drop 3 | . . . 3 Fire 32 | . . 7 25 Melee 31 | . . . 31 Ram . | . . . . Kick 1 | . . . 1 Crush . | . . . . Escape Stasis . | . . . . Rewire . | . . . . Trap . | . . . . Miscellaneous . | . . . . Route ------- -11/Scrapyard -10/Materials -10/Mines -9/Materials (discovered 2 exits: Min x2) History --------- Turn | Location | Event 1 | -11/Scrapyard | Discovered new exit (range 0) 1 | -11/Scrapyard | Entered Materials 1 | -10/Materials | Discovered new exit (range 8) 10 | -10/Materials | Entered Mines 152 | -10/Mines | Assisted by bots powering up and referring to "LRC-V3" 304 | -10/Mines | Build established: Mutant 333 | -10/Mines | Discovered new exit (range 5) 334 | -10/Mines | Learned location of Zion (-6) 348 | -10/Mines | Entered Materials 348 | -9/Materials | Evolved 2 slots: Utility x2 386 | -9/Materials | Central database locked down 453 | -9/Materials | Identified exit to Mines 714 | -9/Materials | Core integrity fell below 50% 741 | -9/Materials | Lost 6 parts (1p3n1u1w) 814 | -9/Materials | Core integrity fell below 20% 831 | -9/Materials | Destroyed by G-34 Mercenary with Small Laser Last Messages --------------- 00814_ U-05 Engineer builds a Wall. 00814_ U-05 Engineer lays Concrete. 00815_ U-05 Engineer builds a Wall. 00815_ U-05 Engineer lays Concrete. 00816_ U-05 Engineer builds a Wall. 00818_ Acquired 34 matter. 00819_ G-47 Trooper destroyed. 00820_ Grenade Launcher destroyed. 00821_ U-05 Engineer lays Concrete. 00822_ Lgt. Treads destroyed. 00822_ U-05 Engineer lays Concrete. 00823_ The unstable cave ceiling collapses. 00823_ U-05 Engineer lays Concrete. 00825_ The unstable cave ceiling collapses. 00825_ U-05 Engineer lays Concrete. 00826_ Flight Unit melted. 00826_ S-10 Pest destroyed. 00828_ The unstable cave ceiling collapses. 00830_ S-10 Pest destroyed. 00831_ U-05 Engineer lays Concrete. Map ----- +----------------------------------------------------+ | """ # ##"" # #???# #??? | | # #### + """ #???# T #??? | | """ + "T" # """"" #???# #??? | | """ # """ # """"" #???# ### #??? | | """ ######+##### # """"" #???# ??#######??? | | #?# # # """ #???# ????????????? | | """ #?# """"" # # #???# #??????????? | | """ #?# """"" # # #???# #??????????? | | """ #?# """"" # ###########???#? #??????????? | | #?# # #?????????????? #??????????? | | #######?# "" # #?????????????# #??????????? | | ????????# """ # ############### #??????????? | | ????????# S" + ##?????????? | | ????????# # ########### "#?????????? | | ????????### ###### #?????????# T#?????????? | | ??????????###????# #?????????# """ "#?????????? | | ?????????????????# ########??# """ ####???????? | | ?????????????????#+## ###?# """ """#???????? | | ?????????????????# #### R"#???????? | | ?????????????????# + ^ """#???????? | | ?????????????????# #### ####???????? | | ?????????????????# ] #### #?????????? | | ?????????????????# [% ## ** #?????????? | | ?????????????????# [### * #?????????? | | ?????????????????# g% #?????????? | | ?????????????????# @=%*% #??????????? | | ?????????????????# u s =# #??????????? | | ?????????????????##+####### # #??????????? | | ?????????????????? g #??????????? | | ???????????????? ########??????????? | | ??????????????? #?????????????????? | | ??????????????############# a#?????????????????> | | ??????????????????????????# #?????????????????? | | ??????????????????????????# #?????????????????? | | ??????????????????????????# #?????????????????? | | ??????????????????????????# #?????????????????? | | ??????????????????????????+ #?????????????????? | | ??????????????????????????# #?????????????????? | | ??????????????????????????? #?????????????????? | | ??????????????????????????? #?????????????????? | | ??????????????????????????? ??????????????????? | | ?????????????????????????????????????????????????? | | ?????????????????????????????????????????????????? | | ?????????????????????????????????????????????????? | | ?????????????????????????????????????????????????? | | ?????????????????????????????????????????????????? | | ?????????????????????????????????????????????????? | | ?????????????????????????????????????????????????? | | ?????????????????????????????????????????????????? | | ?????????????????????????????????????????????????? | +----------------------------------------------------+ Best States ------------- Heat Dissipation 38 Energy Generation 10 Energy Capacity 250 Matter Stores 300 Matter Capacity 300 Sight Range 16 Terrain Scan Density 10 Armor Coverage 150 Evasion (%) 55 Recoil Reduction 2 Item Schematics ----------------- None Robot Schematics ------------------ None Fabricated ------------ Nothing Alien Tech Used ----------------- None Achievements -------------- None Challenges ------------ None Game ------ Seed MetafieldDataChronowheel Manual? 0 Play Time 00:08:03 Cumulative 116.2 hours Start 2024.08.31 @ 14:24:23 End 2024.08.31 @ 14:33:19 Sessions 1 Manual Loads 0 Difficulty Rogue Special Mode None Game No. 190 Rogue 189 Adventurer 1 Explorer 0 Win Type - Total 0 Types 0/0/0/0/0/0/0/0/0 Lore% 62 Gallery% 65 Achievement% 49 Wizard Run 0 Options --------- Layout 1 ASCII 0 Keyboard 0 Movement Mouse Keybinds 0 Fullscreen 2 Font 20/SmallcapsGlow Map View 54x42 Zoom Use 0% Tactical HUD 1 Map Filters NONE Filters NONE Steam 0 RUN: e47baf50-a53a-496a-a2c4-d46163b5f7b7